[Event "FIJ Cannes 2024"]
[Site "Cannes"]
[Date "2024.02.22"]
[Round "6.2"]
[White "Li, Di"]
[Black "Nogerbek, Kazybek"]
[Result "1/2-1/2"]
[ECO "C50"]
[WhiteElo "2563"]
[BlackElo "2463"]
[Annotator "TA"]
[PlyCount "129"]
[EventDate "2024.02.20"]
[EventType "swiss"]
[EventCountry "FRA"]
[SourceTitle "playchess.com"]
[Source "ChessBase"]
[SourceQuality "1"]
[TimeControl "40/5400+30:1800+30"]

{[%evp 10,129,12,17,17,12,11,0,0,0,14,10,7,18,14,6,16,0,20,0,12,0,0,4,24,0,0,-9,-12,-24,13,9,28,18,31,19,8,20,16,18,32,24,23,0,17,13,18,21,29,0,0,0,23,4,18,14,9,8,8,9,61,54,61,61,54,66,187,158,151,99,99,99,99,99,117,117,117,117,117,117,117,117,124,124,124,106,117,117,106,106,106,91,91,91,91,78,88,80,81,74,115,0,10,13,12,11,11,12,39,12,10,8,8,8,8,8,8,8,8,8,8,8]} 1. e4 {[%emt 0:05:39]} e5 {[%emt 0:03:11]} 2. Nf3 {[%emt 0:00:10]} Nc6 {[%emt 0:00:36]} 3. Bc4 {[%emt 0:00:12]} Nf6 {[%emt 0:00:19]} 4. d3 {[%emt 0:00:11]} Bc5 {[%emt 0:00:23]} 5. O-O {[%emt 0:00:38]} d6 {[%emt 0:00:29]} 6. a4 {[%emt 0:00:17]} a5 {[%emt 0:03:53]} 7. c3 {[%emt 0:00:52]} h6 {[%emt 0:02:25]} 8. Be3 {[%emt 0:01:44]} Bxe3 {[%emt 0:04:31]} 9. fxe3 {[%emt 0:00:05]} O-O {[%emt 0:00:11]} 10. Nbd2 {[%emt 0:00:10]} Be6 {[%emt 0:04:30]} 11. Bxe6 {[%emt 0:00:43]} fxe6 {[%emt 0:00:13]} 12. Qb3 {[%emt 0:00:15]} Qd7 {[%emt 0:01:16]} 13. h3 {[%emt 0:00:23]} (13. Qxb7 $2 {loses.} Rfb8 $19) 13... d5 {[%emt 0:06:15]} 14. Rf2 {[%emt 0:00:30]} (14. Qxb7 $2 {too greedy.} Rfb8 $19) 14... b6 {[%emt 0:02:40]} 15. Raf1 {[%emt 0:00:45]} Rad8 {[%emt 0:01:30]} 16. g4 {[%emt 0:01:10]} Nh7 {[%emt 0:08:41]} 17. Kg2 {[%emt 0:17:07]} Qd6 {[%emt 0:06:45]} 18. Nh4 {[%emt 0:15:50]} Rxf2+ {[%emt 0:03:33]} 19. Rxf2 {[%emt 0:00:05]} Rf8 {[%emt 0:00:37]} 20. exd5 {[%emt 0:10:57]} Qxd5+ {[%emt 0:02:26]} 21. Nhf3 {[%emt 0:04:52]} Nf6 {[%emt 0:06:20]} 22. e4 {[%emt 0:10:47]} Qxb3 {[%emt 0:00:47]} 23. Nxb3 {[%emt 0:00:04]} Nd7 {[%emt 0:03:53]} 24. h4 {[%emt 0:06:49]} Rf4 {[%emt 0:04:41]} 25. Kg3 {[%emt 0:00:27]} Nf6 {[%emt 0:02:50]} 26. Nh2 {[%emt 0:00:48]} Rxf2 {[%emt 0:01:06]} 27. Kxf2 $11 {[%emt 0:00:02][%mdl 4096] Endgame. KNN-KNN} Kf7 {[%emt 0:00:31]} 28. Ke3 {[%emt 0:01:16]} Nd7 {[%emt 0:02:40]} 29. Nf3 {[%emt 0:01:50]} Nf6 {[%emt 0:02:13]} 30. Nh2 {[%emt 0:01:49]} Nd7 {[%emt 0:00:37]} 31. Nd2 {[%emt 0:12:29]} g5 {[%emt 0:02:11]} 32. hxg5 {[%emt 0:01:30]} hxg5 {[%emt 0:00:13]} 33. Nhf3 {[%emt 0:00:17]} Kf6 {[%emt 0:00:55]} 34. b3 {[%emt 0:01:40]} Kg6 {[%emt 0:06:14]} (34... Nc5 $11) 35. Nc4 $14 {[%emt 0:00:30]} Kf6 {[%emt 0:00:06]} 36. Kd2 {[%emt 0:00:18]} Nd8 {[%emt 0:02:56]} 37. Kc2 {[%emt 0:03:14]} c5 {[%emt 0:01:18] [#]} (37... Nc6 $14) 38. Nd6 $1 $18 {[%emt 0:01:40]} Nc6 {[%emt 0:03:09] [#]} 39. Kd2 {[%emt 0:01:06]} (39. Nc8 $142 $1) 39... Ke7 $16 {[%emt 0:02:52]} 40. Nc4 {[%emt 0:00:15]} Kf6 {[%emt 0:00:05]} 41. Ke3 {[%emt 0:31:02]} Ne7 {[%emt 0:35:13]} 42. Nd6 {[%emt 0:00:00]} Kg6 {[%emt 0:00:00]} 43. Nd2 {[%emt 0:00:00]} Kf6 {[%emt 0:00:00]} 44. N2c4 {[%emt 0:00:00]} Kg6 {[%emt 0:00:00]} 45. Ne8 {[%emt 0:00:00]} Nc8 {[%emt 0:00:00]} 46. Nc7 {[%emt 0:00:00]} Kf6 {[%emt 0:00:00]} 47. Kd2 {[%emt 0:00:00]} Ke7 {[%emt 0:00:00]} 48. Nb5 {[%emt 0:00:00] Dodges Nd6. White is much more active. The black rooks are passive.} Kf6 {[%emt 0:00:00]} 49. Kc2 {[%emt 0:00:00]} Ke7 {[%emt 0:00:00]} 50. Kb2 {[%emt 0:00:00]} Kd8 {[%emt 0:00:00]} 51. Ka3 {[%emt 0:00:00]} Ke7 {[%emt 0:00:22]} 52. b4 {[%emt 0:00:00]} cxb4+ {[%emt 0:00:06]} 53. cxb4 {[%emt 0:00:00]} axb4+ {[%emt 0:00:05]} 54. Kxb4 {[%emt 0:00:00]} Kd8 {[%emt 0:03:17]} 55. d4 {[%emt 0:00:00]} (55. Nbd6 $16 {Nf7+ would now be deadly.} Nxd6 56. Nxd6) 55... exd4 {[%emt 0:00:34]} 56. Nxd4 {[%emt 0:00:00]} Nf6 $1 {[%emt 0:02:51][%csl LRe4,LRg4]} 57. Nxe6+ {[%emt 0:00:00]} Kd7 $1 {[%emt 0:00:24]} 58. Nxg5 {[%emt 0:00:00]} Nxg4 {[%emt 0:00:02]} 59. Kb5 {[%emt 0:00:00]} Kc7 {[%emt 0:00:39] The position is equal.} 60. e5 {[%emt 0:00:49]} Na7+ {[%emt 0:02:31]} 61. Ka6 {[%emt 0:00:05]} b5 {[%emt 0:00:14]} 62. Ne6+ {[%emt 0:03:01]} Kb8 {[%emt 0:01:42]} 63. axb5 {[%emt 0:04:26]} Nxb5 {[%emt 0:00:29]} 64. Kxb5 {[%emt 0:00:21]} Nxe5 {[%emt 0:00:05]} 65. Nxe5 {[%emt 0:00:03] White really could win this.   Weighted Error Value: White=0.07 (flawless) /Black=0.08 (flawless) .  Mistake:       	White=2     	Black=2      Inaccurate:     	White=2     	Black=2      OK:         	White=23    	Black=31     Best:        	White=1     	---        Strong:       	White=1     	Black=2} 1/2-1/2

[Event "FIJ Cannes 2024"]
[Site "Cannes"]
[Date "2024.02.22"]
[Round "6.3"]
[White "Materia, Marco"]
[Black "Bharath Subramaniyam H"]
[Result "0-1"]
[ECO "A50"]
[WhiteElo "2430"]
[BlackElo "2515"]
[Annotator "TA"]
[PlyCount "68"]
[EventDate "2024.02.20"]
[EventType "swiss"]
[EventCountry "FRA"]
[SourceTitle "playchess.com"]
[Source "ChessBase"]
[SourceQuality "1"]
[TimeControl "40/5400+30:1800+30"]

{[%evp 10,68,30,18,22,27,22,18,17,24,20,2,2,6,3,0,3,9,6,0,0,9,22,15,29,18,24,32,26,0,0,-11,0,0,0,-7,-11,-6,-15,-27,-39,-63,-63,-72,-72,-90,-52,-151,-141,-619,-606,-623,-579,-716,-725,-639,-464,-519,-519,-738,-727]} 1. d4 {[%emt 0:00:02]} Nf6 {[%emt 0:09:23][%cal Bg8f6,Bf6d5,Bd5c3][%mdl 32]} 2. c4 {[%emt 0:00:03]} b6 {[%emt 0:00:16]} 3. Nc3 {[%emt 0:00:09]} Bb7 {[%emt 0:00:08]} 4. Qc2 {[%emt 0:00:09]} d5 {[%emt 0:00:59]} 5. cxd5 {[%emt 0:00:07]} Nxd5 {[%emt 0:00:07]} 6. e4 {[%emt 0:00:04]} Nxc3 {[%emt 0:00:19]} 7. bxc3 {[%emt 0:00:05]} e6 {[%emt 0:00:09]} 8. Nf3 {[%emt 0:00:11]} Be7 {[%emt 0:00:07] The position is equal.} 9. Bd3 {[%emt 0:01:12]} c5 {[%emt 0:01:34]} 10. O-O {[%emt 0:00:40][%cal Od4d5]} cxd4 $1 {[%emt 0:01:57]} 11. cxd4 {[%emt 0:00:59] Black should prevent Bb5+.} O-O {[%emt 0:00:17]} 12. Bb2 {[%emt 0:06:34]} Nc6 {[%emt 0:06:47]} 13. Qe2 {[%emt 0:09:28]} Rc8 {[%emt 0:04:52]} 14. Rac1 {[%emt 0:10:49]} Bf6 {[%emt 0:22:33]} 15. Qe3 {[%emt 0:05:08]} Qd7 {[%emt 0:03:39]} 16. Bb5 {[%emt 0:23:51][%cal Od4d5]} a6 {[%emt 0:06:46]} 17. Be2 {[%emt 0:05:10]} b5 {[%emt 0:14:07]} 18. Rfd1 {[%emt 0:05:54][%cal Od4d5]} Na5 {[%emt 0:02:25]} 19. Ba3 {[%emt 0:02:02] Threatens to win with Ne5.} Rxc1 {[%emt 0:02:39]} 20. Rxc1 {[%emt 0:00:09]} Rc8 {[%emt 0:01:21]} 21. Rxc8+ {[%emt 0:02:27]} Qxc8 {[%emt 0:01:24]} 22. Bc5 {[%emt 0:00:43]} Nc4 {[%emt 0:04:32]} 23. Bxc4 {[%emt 0:08:14]} bxc4 {[%emt 0:01:33]} 24. Nd2 {[%emt 0:01:08]} Qc6 {[%emt 0:01:26]} 25. f3 {[%emt 0:01:43]} Qb5 {[%emt 0:04:32]} 26. Qa3 {[%emt 0:01:08]} a5 {[%emt 0:01:24]} 27. Qc1 {[%emt 0:04:29]} Ba6 {[%emt 0:03:04][%cal Oc4c3] Black is more active. A strong pair of Bishops.} 28. f4 {[%emt 0:01:20] [#]} (28. Nb1 $1 $15) 28... Qa4 $1 $17 {[%emt 0:02:02]} 29. a3 $2 {[%emt 0:01:03][%mdl 8192] [#] White does not recover from this.} (29. Qc3 $17) 29... c3 $1 $19 {[%emt 0:00:59][%mdl 512] Black is clearly winning.} 30. Nf3 {[%emt 0:00:38]} (30. Nf1 Bxd4+) 30... Qc4 {[%emt 0:02:35] White is weak on the light squares} 31. h3 {[%emt 0:02:54]} c2 {[%emt 0:00:25][%cal Oc4f1] Hoping for ...Qf1+!} 32. Kh2 {[%emt 0:00:00]} Bb5 {[%emt 0:00:26] And now ...Bc6 would win.} 33. Ne1 {[%emt 0:00:29]} Ba4 {[%emt 0:00:02][%cal Of6h4]} ({Weaker is} 33... Bxd4 34. Bxd4 Qxd4 35. Qxc2 $17) 34. Qb2 {[%emt 0:02:17] Threatening mate with Qb8+.} Qxc5 {[%emt 0:00:52] Weighted Error Value: White=0.50/Black=0.13 (very precise) .  Loses game:     	White=1     	---        Mistake:       	White=1     	---        Inaccurate:     	White=2     	Black=1      OK:         	White=7     	Black=15     Strong:       	---       	Black=2      Brilliant:      	---       	Black=1} ({Not} 34... c1=R 35. Qb8+) 0-1

[Event "FIJ Cannes 2024"]
[Site "Cannes"]
[Date "2024.02.22"]
[Round "6.4"]
[White "Can, Isik"]
[Black "Tarhan, Adar"]
[Result "1/2-1/2"]
[ECO "C65"]
[WhiteElo "2500"]
[BlackElo "2420"]
[Annotator "TA"]
[PlyCount "73"]
[EventDate "2024.02.20"]
[EventType "swiss"]
[EventCountry "FRA"]
[SourceTitle "playchess.com"]
[Source "ChessBase"]
[SourceQuality "1"]
[TimeControl "40/5400+30:1800+30"]

{[%evp 17,73,0,8,6,8,0,19,10,31,39,45,33,38,55,33,29,94,102,125,110,118,104,108,96,91,0,0,0,0,0,0,0,0,0,0,0,0,0,0,0,0,0,0,0,0,0,0,0,0,0,0,0,0,0,0,0,0,0]} 1. e4 {[%emt 1:31:00]} e5 {[%emt 1:31:00]} 2. Nf3 {[%emt 0:00:30]} Nc6 {[%emt 0:00:30]} 3. Bb5 {[%emt 0:00:30]} Nf6 {[%emt 0:00:30]} 4. d3 {[%emt 0:00:30]} d6 {[%emt 0:00:30]} 5. O-O {[%emt 0:00:30]} Be7 {[%emt 0:00:30]} 6. d4 {[%emt 0:00:30]} O-O {[%emt 0:00:30]} 7. Bxc6 {[%emt 0:00:30]} bxc6 {[%emt 0:00:30]} 8. Nc3 {[%emt 0:00:30]} exd4 {[%emt 0:00:30]} 9. Nxd4 {[%emt 0:00:30]} Bd7 {[%emt 0:00:30]} 10. Qf3 {[%emt 0:00:30]} Re8 {[%emt 0:00:30]} 11. h3 {[%emt 0:00:30]} Rb8 {[%emt 0:00:30]} 12. b3 {[%emt 0:00:30]} d5 {[%emt 0:00:30]} 13. exd5 {[%emt 0:00:30]} cxd5 {[%emt 0:00:30]} 14. Nxd5 {[%emt 0:00:30]} Nxd5 {[%emt 0:00:30]} 15. Qxd5 {[%emt 0:00:30]} Bf6 {[%emt 0:00:30]} 16. c3 {[%emt 0:00:30]} Qc8 {[%emt 0:00:30]} (16... Re5 $1 $11 17. Qf3 c5) 17. Bf4 $16 {[%emt 0:00:30]} Rb6 {[%emt 0:00:30][%cal Bb8b6,Bb6c6,Bc6g6][%mdl 32]} 18. Qc5 {[%emt 0:00:30] White is more active.} Bxd4 {[%emt 0:00:30]} 19. cxd4 {[%emt 0:00:30]} Rc6 {[%emt 0:00:30]} 20. Qxa7 {[%emt 0:00:30]} (20. Qa5 {simplifies} Ra6 21. Qxc7 Qxc7 22. Bxc7 Re2 23. a4) 20... Bxh3 {[%emt 0:00:30]} 21. gxh3 {[%emt 0:00:30]} (21. Rae1 $16 Rg6 22. Bg3 (22. Bxc7 $2 {is the wrong capture.} Rxg2+ 23. Kh1 Rg5 $19)) 21... Qxh3 $11 {[%emt 0:00:30] [#] ...Rg6+ is the strong threat. The position is equal.} 22. Qb7 {[%emt 0:00:30]} Rg6+ {[%emt 0:00:30]} 23. Bg3 {[%emt 0:00:30][%cal Oa1e1] Hoping for Rae1!} c6 {[%emt 0:00:30] aiming for ...Rh6.} 24. Qc7 {[%emt 0:00:30]} Rh6 {[%emt 0:00:30][%csl Gh6][%cal Rh3h1]} 25. f3 {[%emt 0:00:30]} Rg6 {[%emt 0:00:30]} 26. Kf2 {[%emt 0:00:30]} Rxg3 $1 {[%emt 0:00:30]} 27. Qxg3 {[%emt 0:00:30]} Re2+ $1 {[%emt 0:00:30]} 28. Kxe2 {[%emt 0:00:30]} Qxg3 {[%emt 0:00:30][%mdl 4096] Endgame. KQ-KRR} 29. a4 {[%emt 0:00:30]} Qd6 {[%emt 0:00:30]} 30. a5 {[%emt 0:00:30]} Qxd4 {[%emt 0:00:30]} 31. Rfd1 {[%emt 0:00:30]} Qe5+ {[%emt 0:00:30]} 32. Kf1 {[%emt 0:00:30]} Qf6 {[%emt 0:00:30] Dodges Rd8+} 33. Ke2 {[%emt 0:00:30]} Qe5+ {[%emt 0:00:30]} 34. Kf1 {[%emt 0:00:30]} Qf6 {[%emt 0:00:30] Inhibits Rd8+.} 35. Kg2 {[%emt 0:00:30]} Qg5+ {[%emt 0:00:30]} 36. Kf2 {[%emt 0:00:30]} Qc5+ {[%emt 0:00:30]} 37. Ke2 {[%emt 0:00:30] Weighted Error Value: White=0.06 (flawless) /Black=0.06 (flawless) .  Mistake:       	White=1     	Black=1      OK:         	White=6     	Black=11     Best:        	White=2     	Black=2      Strong:       	---       	Black=2} 1/2-1/2

[Event "FIJ Cannes 2024"]
[Site "Cannes"]
[Date "2024.02.22"]
[Round "6.5"]
[White "Clotet Mas, Dan"]
[Black "Chapon, Jean-Alexis"]
[Result "1-0"]
[ECO "B55"]
[WhiteElo "1938"]
[BlackElo "2039"]
[Annotator "NA RC"]
[PlyCount "105"]
[EventDate "2024.02.20"]
[EventType "swiss"]
[EventCountry "FRA"]
[SourceTitle "playchess.com"]
[Source "ChessBase"]
[SourceQuality "1"]
[TimeControl "40/5400+30:1800+30"]

1. e4 {[%emt 1:31:00]} c5 {[%emt 1:31:00]} 2. Nf3 {[%emt 0:00:30]} d6 {[%emt 0:00:30]} 3. d4 {[%emt 0:00:30]} cxd4 {[%emt 0:00:30]} 4. Nxd4 {[%emt 0:00:30]} Nf6 {[%emt 0:00:30]} 5. f3 {[%emt 0:00:30]} Qb6 {[%emt 0:00:30]} 6. c4 {[%emt 0:00:30]} Nc6 {[%emt 0:00:30]} 7. Nc2 {[%emt 0:00:30]} g6 {[%emt 0:00:30]} 8. Nc3 {[%emt 0:00:30]} Bg7 {[%emt 0:00:30]} 9. Qe2 {[%emt 0:00:30]} O-O {[%emt 0:00:30]} 10. Qf2 {[%emt 0:00:30]} Qxf2+ {[%emt 0:00:30]} 11. Kxf2 {[%emt 0:00:30]} Nd7 {[%emt 0:00:30]} 12. Ne3 {[%emt 0:00:30]} Bd4 {[%emt 0:00:30]} 13. Nb5 {[%emt 0:00:30]} Bb6 {[%emt 0:00:30]} 14. Ke1 {[%emt 0:00:30]} a6 {[%emt 0:00:30]} 15. Nc3 {[%emt 0:00:30]} Nde5 {[%emt 0:00:30]} 16. Ned5 {[%emt 0:00:30]} Ba5 {[%emt 0:00:30]} 17. Bh6 {[%emt 0:00:30]} Re8 {[%emt 0:00:30]} 18. Rc1 {[%emt 0:00:30]} Nd7 {[%emt 0:00:30]} 19. a3 {[%emt 0:00:30]} e6 {[%emt 0:00:30]} 20. Ne3 {[%emt 0:00:30]} Nf6 {[%emt 0:00:30]} 21. Rd1 {[%emt 0:00:30]} Bc7 {[%emt 0:00:30]} 22. Bf4 {[%emt 0:00:30]} Ne5 {[%emt 0:00:30]} 23. h3 {[%emt 0:00:30]} b6 {[%emt 0:00:30]} 24. Be2 {[%emt 0:00:30]} Bb7 {[%emt 0:00:30]} 25. Bg5 {[%emt 0:00:30]} Kg7 {[%emt 0:00:30]} 26. f4 {[%emt 0:00:30]} Ned7 {[%emt 0:00:30]} 27. Bf3 {[%emt 0:00:30]} Rab8 {[%emt 0:00:30]} 28. b4 {[%emt 0:00:30]} h6 {[%emt 0:00:30]} 29. Bh4 {[%emt 0:00:30]} Nh5 {[%emt 0:00:30]} 30. Bxh5 {[%emt 0:00:30]} gxh5 {[%emt 0:00:30]} 31. e5 {[%emt 0:00:30]} Rbc8 {[%emt 0:00:30]} 32. exd6 {[%emt 0:00:30]} Bd8 {[%emt 0:00:30]} 33. Bxd8 {[%emt 0:00:30]} Rexd8 {[%emt 0:00:30]} 34. Rg1 {[%emt 0:00:30]} Nf6 {[%emt 0:00:30]} 35. g4 {[%emt 0:00:30]} Rc6 {[%emt 0:00:30]} 36. g5 {[%emt 0:00:30]} Ne8 {[%emt 0:00:30]} 37. gxh6+ {[%emt 0:00:30]} Kxh6 {[%emt 0:00:30]} 38. Ne4 {[%emt 0:00:30]} Rd7 {[%emt 0:00:30]} 39. f5 {[%emt 0:00:30]} Rc8 {[%emt 0:00:30]} 40. Ng5 {[%emt 0:00:30]} Ng7 {[%emt 0:00:30]} 41. fxe6 {[%emt 0:30:30]} fxe6 {[%emt 0:30:30]} 42. h4 {[%emt 0:00:30]} Ba8 {[%emt 0:00:30]} 43. Rd4 {[%emt 0:00:30]} e5 {[%emt 0:00:30]} 44. Rd2 {[%emt 0:00:30]} Rf8 {[%emt 0:00:30]} 45. Rf1 {[%emt 0:00:30]} Rxf1+ {[%emt 0:00:30]} 46. Kxf1 {[%emt 0:00:30]} Kg6 {[%emt 0:00:30]} 47. c5 {[%emt 0:00:30]} bxc5 {[%emt 0:00:30]} 48. bxc5 {[%emt 0:00:30]} Nf5 {[%emt 0:00:30]} 49. Nc4 {[%emt 0:00:30]} Rd8 {[%emt 0:00:30]} 50. Nxe5+ {[%emt 0:00:30]} Kf6 {[%emt 0:00:30]} 51. Ngf7 {[%emt 0:00:30]} Rg8 {[%emt 0:00:30]} 52. d7 {[%emt 0:00:30]} Ng3+ {[%emt 0:00:30]} 53. Ke1 {[%emt 0:00:30]} 1-0

[Event "FIJ Cannes 2024"]
[Site "Cannes"]
[Date "2024.02.22"]
[Round "6.6"]
[White "Roberts, Tallulah"]
[Black "Gurevich, Michele"]
[Result "0-1"]
[ECO "C02"]
[WhiteElo "1488"]
[BlackElo "1346"]
[Annotator "NA RC"]
[PlyCount "82"]
[EventDate "2024.02.20"]
[EventType "swiss"]
[EventCountry "FRA"]
[SourceTitle "playchess.com"]
[Source "ChessBase"]
[SourceQuality "1"]
[TimeControl "40/5400+30:1800+30"]

1. e4 {[%emt 0:00:02]} e6 {[%emt 0:00:03]} 2. d4 {[%emt 0:00:05]} d5 {[%emt 0:00:03]} 3. e5 {[%emt 0:00:14]} c5 {[%emt 0:00:04]} 4. c3 {[%emt 0:00:03]} Nc6 {[%emt 0:00:05]} 5. Nf3 {[%emt 0:00:04]} Qb6 {[%emt 0:00:04]} 6. a3 {[%emt 0:00:05]} cxd4 {[%emt 0:01:25]} 7. cxd4 {[%emt 0:00:08]} Nge7 {[%emt 0:00:15]} 8. b4 {[%emt 0:00:20]} Nf5 {[%emt 0:00:38]} 9. Bb2 {[%emt 0:00:18]} a5 {[%emt 0:01:11]} 10. b5 {[%emt 0:01:26]} Na7 {[%emt 0:00:13]} 11. a4 {[%emt 0:01:20]} Bb4+ {[%emt 0:01:05]} 12. Nc3 {[%emt 0:01:26]} Bd7 {[%emt 0:02:00]} 13. Be2 {[%emt 0:02:06]} Nc8 {[%emt 0:02:21]} 14. O-O {[%emt 0:01:58]} Bxc3 {[%emt 0:00:49]} 15. Bxc3 {[%emt 0:00:18]} Nce7 {[%emt 0:00:28]} 16. Rc1 {[%emt 0:06:17]} Ng6 {[%emt 0:03:39]} 17. Bb2 {[%emt 0:05:50]} O-O {[%emt 0:02:48]} 18. Bd3 {[%emt 0:04:58]} Nf4 {[%emt 0:06:43]} 19. Bxf5 {[%emt 0:00:58]} exf5 {[%emt 0:00:09]} 20. Qd2 {[%emt 0:03:24]} Ng6 {[%emt 0:02:13]} 21. Ba3 {[%emt 0:01:51]} Rfc8 {[%emt 0:02:33]} 22. Rc5 {[%emt 0:08:36]} Be6 {[%emt 0:00:46]} 23. Rfc1 {[%emt 0:02:24]} Qd8 {[%emt 0:05:49]} 24. h3 {[%emt 0:10:06]} b6 {[%emt 0:02:56]} 25. Rc6 {[%emt 0:01:32]} Rxc6 {[%emt 0:11:20]} 26. Rxc6 {[%emt 0:01:06]} h6 {[%emt 0:03:07]} 27. Bd6 {[%emt 0:05:19]} Rc8 {[%emt 0:05:37]} 28. Qc1 {[%emt 0:02:17]} Rxc6 {[%emt 0:02:09]} 29. Qxc6 {[%emt 0:00:37]} Nh4 {[%emt 0:01:01]} 30. Nxh4 {[%emt 0:06:03]} Qxh4 {[%emt 0:00:45]} 31. Qxb6 {[%emt 0:05:01]} f4 {[%emt 0:01:41]} 32. Qxa5 {[%emt 0:09:18]} f3 {[%emt 0:01:59]} 33. Qc3 {[%emt 0:01:38]} fxg2 {[%emt 0:04:16]} 34. Bc5 {[%emt 0:05:24]} Bxh3 {[%emt 0:04:49]} 35. Qg3 {[%emt 0:01:38]} Qh5 {[%emt 0:06:08]} 36. f3 {[%emt 0:01:29]} Qf5 {[%emt 0:03:17]} 37. Kh2 {[%emt 0:01:45]} Qb1 {[%emt 0:00:35]} 38. Kxh3 {[%emt 0:02:47]} g1=Q {[%emt 0:00:22]} 39. Qxg1 {[%emt 0:00:19]} Qxg1 {[%emt 0:00:05]} 40. b6 {[%emt 0:00:15]} Qf1+ {[%emt 0:03:50]} 41. Kg3 {[%emt 0:30:32]} Qa6 {[%emt 0:30:44]} 0-1

[Event "FIJ Cannes 2024"]
[Site "Cannes"]
[Date "2024.02.23"]
[Round "7.1"]
[White "Puranik, Abhimanyu"]
[Black "Vetokhin, Savva"]
[Result "1/2-1/2"]
[ECO "D38"]
[WhiteElo "2645"]
[BlackElo "2410"]
[Annotator "TA"]
[PlyCount "53"]
[EventDate "2024.02.20"]
[EventType "swiss"]
[EventCountry "FRA"]
[SourceTitle "playchess.com"]
[Source "ChessBase"]
[SourceQuality "1"]
[TimeControl "40/5400+30:1800+30"]

{[%evp 12,53,7,20,20,22,14,6,0,0,12,7,20,0,0,0,0,-16,-26,-18,-28,-14,-27,-29,-26,-11,-13,-33,-29,-34,-14,-13,-4,-31,-12,-43,-27,-25,-20,-19,-35,-14,-18,-52]} 1. d4 {[%emt 0:03:12]} Nf6 {[%emt 0:00:16]} 2. c4 {[%emt 0:00:03]} e6 {[%emt 0:00:15]} 3. Nf3 {[%emt 0:00:04]} d5 {[%emt 0:00:19]} 4. Nc3 {[%emt 0:00:07]} Bb4 {[%emt 0:00:27]} 5. cxd5 {[%emt 0:00:43]} exd5 {[%emt 0:00:11]} 6. Bg5 {[%emt 0:00:09]} h6 {[%emt 0:00:49]} 7. Bh4 {[%emt 0:00:27]} O-O {[%emt 0:00:40]} 8. e3 {[%emt 0:00:36]} Bf5 {[%emt 0:00:30]} 9. Ne5 {[%emt 0:01:47]} c5 {[%emt 0:05:32]} 10. Be2 {[%emt 0:00:38]} c4 {[%emt 0:06:46]} 11. f3 {[%emt 0:15:35][%cal Oe3e4]} Qa5 {[%emt 0:13:33]} 12. Qc1 {[%emt 0:15:41][%cal Oe3e4]} (12. O-O {looks sharper.} Bxc3 13. bxc3 Qxc3 14. e4) 12... Nbd7 {[%emt 0:01:21]} 13. Nxd7 {[%emt 0:01:26]} Nxd7 {[%emt 0:00:51]} 14. O-O {[%emt 0:00:03]} Rfe8 {[%emt 0:07:21]} 15. Be1 {[%emt 0:02:47][%cal Oe3e4]} Nb6 {[%emt 0:08:31]} 16. Bd1 {[%emt 0:07:12]} Qa6 {[%emt 0:06:12]} 17. Bd2 {[%emt 0:08:15]} Rac8 {[%emt 0:04:47]} 18. Re1 {[%emt 0:08:00]} Bd3 {[%emt 0:01:14]} 19. a4 {[%emt 0:01:04][%cal Oa4a5]} Qa5 {[%emt 0:01:48]} 20. Bc2 {[%emt 0:00:43]} Bxc2 {[%emt 0:01:15]} 21. Qxc2 {[%emt 0:00:04]} Rcd8 {[%emt 0:00:06]} 22. Qf5 {[%emt 0:01:45]} Re6 {[%emt 0:02:17]} 23. Re2 {[%emt 0:03:21]} Nc8 {[%emt 0:01:35][%cal Bb6c8,Bc8e7,Be7c6][%mdl 32]} 24. Qc2 {[%emt 0:00:44]} Ne7 {[%emt 0:01:29]} 25. Be1 {[%emt 0:05:59]} Nc6 {[%emt 0:01:08]} 26. Rd1 {[%emt 0:00:46]} Qb6 {[%emt 0:05:37]} 27. Bf2 {[%emt 0:00:23] Weighted Error Value: White=0.05 (flawless) /Black=0.04 (flawless) .  Inaccurate:     	White=2     	---        OK:         	White=8     	Black=11     Best:        	---       	Black=1} 1/2-1/2